bitfinex/quotes_ETHUSD_20220731
["timestamp","ask_amount","ask_price","bid_price","bid_amount"]
[1659303948330,6.42111327,1703.0,1702.6,0.05]
[1659303948543,7.65,1703.6,1702.3,0.05]
[1659303948544,0.15,1703.1,1702.3,0.05]
[1659303948767,0.15,1703.1,1702.2,0.05]
[1659303948768,6.42111327,1702.7,1702.2,0.05]
[1659303948975,6.42111327,1702.7,1702.0,0.05]
[1659303949272,6.42111327,1702.7,1701.9,0.05]
[1659303949431,6.42111327,1702.7,1702.1,3.5]
[1659303949636,6.57111327,1702.8,1702.1,3.5]
[1659303949863,6.57111327,1702.8,1702.1,3.67598436]
[1659303950269,0.15,1702.8,1702.1,0.17598436]
[1659303950435,6.42111327,1702.7,1702.1,0.17598436]
[1659303950638,6.42111327,1702.7,1702.2,2.89804672]
[1659303950864,6.42111327,1702.7,1702.3,3.0]
[1659303951067,0.52073318,1702.8,1702.4,2.89804672]
[1659303951276,6.42111327,1702.6,1702.4,2.89804672]
[1659303952090,0.52073318,1702.8,1702.4,2.89804672]
[1659303952294,6.42111327,1702.6,1702.4,2.89804672]
[1659303952499,6.47704594,1702.6,1702.4,2.89804672]
[1659303952668,6.79184645,1702.5,1702.0,0.05]
[1659303952875,6.79184645,1702.5,1702.0,2.89804672]
[1659303952876,0.15,1702.3,1702.0,2.89804672]
[1659303953103,6.37111327,1702.2,1701.9,2.89804672]
[1659303953263,0.15,1702.3,1701.9,2.89804672]
[1659303953463,6.37111327,1702.1,1701.9,2.89804672]
[1659303956417,6.37111327,1702.2,1701.9,2.89804672]
[1659303956610,0.05413737,1702.1,1701.9,6.57403108]
[1659303956789,0.05413737,1702.1,1702.0,2.89804672]
[1659303957187,0.05413737,1702.1,1702.0,3.07403108]
[1659303957388,0.05413737,1702.1,1702.0,2.89804672]
[1659303960557,7.8049,1702.5,1702.0,2.89804672]
[1659303960762,14.49674645,1702.5,1702.0,2.89804672]
[1659303961132,14.49674645,1702.5,1702.1,3.0]
[1659303961133,6.37111327,1702.3,1702.1,3.0]
[1659303961366,8.12563318,1702.5,1702.1,2.89804672]
[1659303961575,8.56663318,1702.5,1702.1,2.89804672]
[1659303962369,6.37111327,1702.3,1702.1,2.89804672]
[1659303962584,8.56663318,1702.5,1702.1,2.89804672]
[1659303963173,6.37111327,1702.3,1702.1,2.89804672]
[1659303963428,6.37111327,1702.4,1702.1,2.89804672]
[1659303964005,8.12563318,1702.5,1702.1,2.89804672]
[1659303964209,6.37111327,1702.2,1702.0,2.89804672]
[1659303964675,0.34471435,1702.4,1702.0,2.89804672]
[1659303964875,6.37111327,1702.1,1702.0,2.89804672]
[1659303965514,0.05413737,1702.2,1702.0,2.89804672]
[1659303965921,6.37111327,1702.1,1702.0,2.89804672]
[1659303966936,0.05413737,1702.2,1702.0,2.89804672]
[1659303967136,0.05413737,1702.2,1702.0,2.90809059]
[1659303967313,0.05413737,1702.2,1702.1,2.89804672]
[1659303967719,0.05413737,1702.2,1702.0,2.90809059]
[1659303971869,0.05413737,1702.2,1702.1,3.0]
[1659303972231,0.05413737,1702.2,1702.1,5.89804672]
[1659303973178,0.05413737,1702.2,1702.1,5.82604672]
[1659303973342,0.05413737,1702.2,1701.7,0.05]
[1659303973343,7.00625064,1702.2,1701.7,0.05]
[1659303973665,6.37111327,1701.8,1701.5,0.05]
[1659303973872,6.37111327,1701.8,1701.6,2.89804672]
[1659303974106,6.37111327,1701.9,1701.6,2.89804672]
[1659303974615,0.02601883,1702.0,1701.6,2.89804672]
[1659303974910,6.37111327,1701.9,1701.6,2.89804672]
[1659303975267,6.34598382,1702.2,1701.6,2.89804672]
[1659303975466,3.0061,1702.3,1701.6,3.24276107]
[1659303975708,2.9113,1702.8,1702.0,2.89804672]
[1659303975709,14.10088382,1702.5,1702.0,2.89804672]
[1659303975911,6.34598382,1702.5,1702.1,2.89804672]
[1659303976081,0.05,1702.7,1702.2,0.05]
[1659303976266,17.35368382,1702.8,1702.2,0.05]
[1659303976267,17.35368382,1702.8,1702.3,2.89804672]
[1659303976466,11.0077,1702.8,1702.3,2.89804672]
[1659303976668,17.35368382,1702.8,1702.3,2.89804672]
[1659303976867,11.0077,1702.8,1702.3,2.89804672]
[1659303977104,6.34598382,1702.7,1702.3,2.89804672]
[1659303977663,11.0077,1702.8,1702.3,2.89804672]
[1659303977868,6.34598382,1702.7,1702.3,2.89804672]
[1659303978668,6.34598382,1702.4,1702.3,2.89804672]
[1659303980121,6.34598382,1702.4,1702.1,2.89804672]
[1659303980701,6.34598382,1702.3,1702.1,2.89804672]
[1659303981937,6.49598382,1702.3,1702.1,2.89804672]
[1659303982728,0.15,1702.3,1702.1,2.89804672]
[1659303983286,0.34853364,1702.4,1702.1,2.89804672]
[1659303985403,6.34598382,1702.5,1702.1,2.89804672]
[1659303985638,2.9767,1702.6,1702.1,2.89804672]
[1659303985950,6.34598382,1702.3,1702.1,2.89804672]
[1659303987203,2.8767,1702.6,1702.1,2.89804672]
[1659303987405,6.34598382,1702.5,1702.1,2.89804672]
[1659303988345,2.8267,1702.6,1702.1,2.89804672]
[1659303988501,6.34598382,1702.3,1702.1,2.89804672]
[1659303990147,6.34598382,1702.2,1702.1,2.89804672]
[1659303991053,0.20326349,1702.5,1702.1,2.89804672]
[1659303991969,6.34598382,1702.3,1701.9,2.89804672]
[1659303992265,6.34598382,1702.0,1701.9,2.89804672]
[1659303992475,6.34598382,1702.0,1701.9,5.89804672]
[1659303992646,6.34598382,1702.0,1701.9,2.89804672]
[1659303993725,0.05,1702.4,1701.9,2.89804672]
[1659303993925,6.82135972,1702.5,1701.9,2.89804672]
[1659303994125,6.38035972,1702.5,1702.0,0.34471435]
[1659303994385,6.34598382,1702.3,1702.1,2.89804672]
[1659303994531,6.32709623,1702.5,1702.1,2.89804672]
[1659303995139,0.15,1702.5,1702.1,2.89804672]
[1659303995562,6.34598382,1702.4,1702.1,2.89804672]
[1659303995774,6.34598382,1702.3,1702.1,2.89804672]
[1659303995927,5.84598382,1702.3,1702.1,2.89804672]
[1659303996127,0.15,1702.5,1702.1,2.89804672]
[1659303996343,5.84598382,1702.2,1701.8,3.05]
[1659303996578,5.84598382,1702.2,1701.6,4.5]
[1659303996579,0.05,1702.4,1701.9,2.89804672]
[1659303996777,5.84598382,1702.3,1701.9,2.89804672]
[1659303997378,0.05326349,1702.2,1701.9,3.24276107]
[1659303997607,0.05326349,1702.2,1702.0,2.89804672]
[1659304000169,0.05326349,1702.2,1702.1,0.34471435]
[1659304000386,0.05326349,1702.2,1702.1,3.24276107]
[1659304001785,5.89924731,1702.2,1702.1,3.24276107]
[1659304002417,0.05326349,1702.2,1702.1,3.24276107]
[1659304002921,0.63426349,1702.2,1702.1,0.34471435]
[1659304003215,0.05326349,1702.2,1702.1,3.24276107]
[1659304003923,0.05326349,1702.2,1702.1,0.34471435]
[1659304005115,5.89924731,1702.2,1702.1,0.34471435]
[1659304005285,0.05326349,1702.2,1702.1,3.24276107]
[1659304005486,0.05326349,1702.2,1702.1,3.46874543]
[1659304005809,0.05326349,1702.2,1702.1,6.46874543]
[1659304006026,0.00026349,1702.2,1702.1,9.96874543]
[1659304006195,0.00026349,1702.2,1702.1,10.26874543]
[1659304006597,0.05326349,1702.2,1702.1,10.26874543]
[1659304006911,0.05326349,1702.2,1702.1,10.70984543]
[1659304007325,0.05326349,1702.2,1702.1,10.26874543]
[1659304007639,0.00026349,1702.2,1702.1,9.96874543]
[1659304007949,0.00026349,1702.2,1702.1,9.99829089]
[1659304008521,0.05170466,1702.2,1702.1,9.99829089]
[1659304008837,0.05,1702.6,1702.1,9.99829089]
[1659304009022,0.05,1702.8,1702.5,2.89804672]
[1659304009225,2.8386,1703.1,1702.6,3.27229785]
[1659304009431,2.7886,1703.1,1702.8,0.05]
[1659304009642,5.84598382,1703.0,1702.9,2.89804672]
[1659304010119,5.84598382,1703.1,1702.9,3.27229266]
[1659304010327,5.84598382,1703.1,1703.0,2.89804672]
[1659304012567,5.84598382,1703.1,1703.0,5.89804672]
[1659304014842,13.71218382,1703.5,1703.0,5.89804672]
[1659304015064,7.8162,1703.5,1703.1,2.89804672]
[1659304015225,5.84598382,1703.2,1703.1,2.89804672]
[1659304016537,5.84598382,1703.3,1703.1,2.89804672]
[1659304018823,5.84598382,1703.4,1703.1,3.24553311]
[1659304019023,5.84598382,1703.4,1703.2,2.89804672]
[1659304019462,7.8162,1703.5,1703.2,2.89804672]
[1659304019906,13.66218382,1703.5,1703.2,2.89804672]
[1659304020316,7.8162,1703.5,1703.2,2.89804672]
[1659304020664,13.66218382,1703.5,1703.2,2.89804672]
[1659304021265,7.8162,1703.5,1703.2,2.89804672]
[1659304021878,13.66218382,1703.5,1703.2,2.89804672]
[1659304022217,5.84598382,1703.4,1703.2,2.89804672]
[1659304022413,14.74636327,1703.6,1703.3,0.37026841]
[1659304022589,8.90037945,1703.6,1703.4,2.89804672]
[1659304022790,0.05397945,1703.6,1703.4,2.89804672]
[1659304023492,0.05397945,1703.6,1703.5,0.34732986]
[1659304023813,0.05397945,1703.6,1703.5,3.24537658]
[1659304024775,17.56598382,1703.7,1703.5,3.24537658]
[1659304024974,17.56598382,1703.7,1703.6,2.89804672]
[1659304025191,7.6188,1703.8,1703.6,4.36463672]
[1659304025192,5.84598382,1703.8,1703.6,4.36463672]
[1659304025426,11.72,1704.0,1703.7,3.26716232]
[1659304025612,11.72,1704.0,1703.8,2.89804672]
[1659304025820,5.84598382,1703.9,1703.8,2.89804672]
[1659304025991,5.34598382,1703.9,1703.8,2.94804672]
[1659304026196,5.34598382,1703.9,1703.8,2.89804672]
[1659304028112,11.72,1704.0,1703.9,1.46636]
[1659304028313,11.72,1704.0,1703.9,5.52843984]
[1659304028936,11.72,1704.0,1703.9,5.57843984]
[1659304029365,11.72,1704.0,1703.9,6.9273953]
[1659304029665,11.72,1704.0,1703.9,9.9273953]
[1659304030320,11.72,1704.0,1703.9,9.75141094]
[1659304030730,5.34598382,1704.2,1704.0,4.39819]
[1659304030943,2.34,1704.3,1704.1,2.89804672]
[1659304031165,5.34598382,1704.2,1703.9,0.34841792]
[1659304031364,5.34598382,1704.2,1703.9,2.89804672]
[1659304031676,5.34598382,1704.0,1703.9,2.89804672]
[1659304032640,5.24598382,1704.0,1703.9,2.89804672]
[1659304033744,10.90617145,1704.0,1703.9,2.89804672]
[1659304035015,10.90617145,1704.0,1703.8,3.28129172]
[1659304035221,5.66018763,1704.0,1703.8,3.28129172]
[1659304035720,5.66018763,1704.0,1703.9,2.89804672]
[1659304035896,5.24598382,1704.0,1703.9,2.89804672]
[1659304036098,5.29749378,1704.1,1703.9,3.13266202]
[1659304036301,0.05150996,1704.1,1704.0,2.89804672]
[1659304036499,5.29749378,1704.1,1704.0,2.89804672]
[1659304037901,0.05150996,1704.1,1704.0,2.89804672]
[1659304038657,5.29749378,1704.1,1703.9,2.89804672]
[1659304038863,5.24598382,1704.0,1703.9,2.89804672]
[1659304039034,4.74598382,1704.0,1703.9,2.89804672]
[1659304040040,4.74598382,1704.0,1703.8,2.93657737]
[1659304040263,0.05150996,1704.1,1703.8,0.03853065]
[1659304040264,0.20150996,1704.1,1703.8,0.03853065]
[1659304040505,4.74598382,1703.9,1703.8,0.03853065]
[1659304041066,4.89598382,1703.9,1703.8,0.03853065]
[1659304041536,4.84598382,1703.9,1703.4,1.51677]
[1659304041773,4.84598382,1703.9,1703.5,2.89804672]
[1659304042361,0.15,1703.9,1703.5,4.36483672]
[1659304042675,4.69598382,1703.6,1703.5,1.46679]
[1659304042980,4.69598382,1703.6,1703.5,4.36483672]
[1659304043139,4.19598382,1703.6,1703.5,4.59951662]
[1659304044630,4.19598382,1703.6,1703.5,5.18051662]
[1659304045031,4.19598382,1703.6,1703.5,4.59951662]
[1659304045702,4.24731701,1703.6,1703.5,4.64091085]
[1659304046897,0.05133319,1703.6,1703.5,4.64091085]
[1659304047102,4.24731701,1703.6,1703.5,4.64091085]
[1659304050094,4.82831701,1703.6,1703.5,0.04139423]
[1659304051387,5.61901701,1703.6,1703.5,0.04139423]
[1659304051586,8.53771701,1703.6,1703.5,0.04139423]
[1659304051836,8.53771701,1703.6,1703.1,0.05]
[1659304051997,4.06073319,1703.6,1703.2,2.89804672]
[1659304052200,4.19598382,1703.3,1703.0,3.13280132]
[1659304052426,4.19598382,1703.2,1703.0,4.36528672]
[1659304053745,4.14598382,1703.2,1703.0,4.60004522]
[1659304055856,0.4907,1703.5,1703.0,4.60004522]
[1659304056010,0.4407,1703.5,1703.2,0.05]
[1659304056211,4.58668382,1703.5,1703.2,2.94804672]
[1659304056445,5.9785,1703.6,1703.2,2.94804672]
[1659304056759,5.9785,1703.6,1703.2,8.93292318]
[1659304056760,4.14598382,1703.4,1703.2,8.93292318]
[1659304056991,4.14598382,1703.4,1703.2,5.99927318]
[1659304057135,10.12448382,1703.6,1703.2,5.99927318]
[1659304057574,4.14598382,1703.5,1703.3,1.46693]
[1659304057778,4.14598382,1703.5,1703.2,5.99927318]
[1659304057779,6.03044751,1703.6,1703.1,0.35482765]
[1659304058089,6.03044751,1703.6,1703.1,3.25287437]
[1659304058090,6.47114751,1703.6,1703.1,3.25287437]
[1659304058374,4.14598382,1703.2,1703.1,3.25287437]
[1659304058576,6.52114751,1703.6,1703.1,3.25287437]
[1659304058753,4.14598382,1703.2,1703.1,3.25287437]
[1659304058955,6.52114751,1703.6,1703.1,3.25287437]
[1659304059195,6.47114751,1703.6,1703.3,1.46695]
[1659304059353,3.71134751,1703.6,1703.2,2.89804672]
[1659304059538,4.14598382,1703.3,1703.2,2.89804672]
[1659304060551,4.04598382,1703.3,1703.1,3.25287437]
[1659304060760,3.7094,1703.6,1703.1,3.25287437]
[1659304061095,3.6594,1703.6,1703.1,3.25287437]
[1659304061302,3.6594,1703.6,1702.3,1.46742]
[1659304061303,1.0,1703.1,1702.3,1.46742]
[1659304061460,4.04598382,1702.7,1702.4,2.89804672]
[1659304061660,0.05,1703.0,1702.4,2.89804672]
[1659304061878,11.4222,1703.1,1702.4,2.89804672]
[1659304062090,4.04598382,1702.5,1702.4,2.89804672]
[1659304062693,4.04598382,1702.5,1702.2,2.89804672]
[1659304062989,0.35,1702.7,1701.8,2.90504672]
[1659304062990,4.04598382,1702.3,1701.8,2.90504672]
[1659304063215,0.15,1702.3,1701.8,0.007]
[1659304063500,4.04598382,1701.9,1701.8,0.007]
[1659304064392,4.04598382,1701.9,1701.3,1.0]
[1659304064595,4.04598382,1701.9,1701.4,2.89804672]
[1659304064938,0.50482765,1702.0,1701.4,2.89804672]
[1659304065103,4.04598382,1701.5,1701.3,0.17598436]
[1659304065309,4.04598382,1701.4,1701.0,0.25]
[1659304065653,0.15,1701.6,1701.0,0.25323561]
[1659304066000,4.04598382,1701.5,1701.0,0.25323561]
[1659304066206,11.56768382,1701.5,1701.0,0.25323561]
[1659304066420,7.5217,1701.5,1701.0,0.43327002]
[1659304066621,7.5217,1701.5,1701.0,0.60601877]
[1659304066991,11.56768382,1701.5,1701.1,2.89804672]
[1659304067197,7.5217,1701.5,1701.1,2.89804672]
[1659304067723,7.5217,1701.5,1701.1,2.92098426]
[1659304067724,4.04598382,1701.2,1701.1,2.92098426]
[1659304067934,7.5217,1701.5,1701.1,3.02293754]
[1659304068098,7.5217,1701.5,1701.1,3.0]
[1659304068099,4.04598382,1701.2,1701.1,3.0]
[1659304068305,4.04598382,1701.2,1701.0,0.25]
[1659304068612,0.15,1701.4,1700.6,0.05]
[1659304068613,6.413,1701.0,1700.6,0.05]
[1659304068797,9.36587437,1700.9,1700.3,0.057]
[1659304068990,9.36587437,1700.9,1700.3,0.007]
[1659304069194,4.04598382,1700.5,1700.3,0.007]
[1659304070350,4.04598382,1700.8,1700.3,3.08103108]
[1659304070509,5.04598382,1700.4,1700.3,0.007]
[1659304071021,5.04598382,1700.4,1699.5,1.0]
[1659304071022,0.007,1700.3,1699.5,1.0]
[1659304071201,4.04598382,1699.9,1699.5,3.89804672]
[1659304071541,0.80332765,1700.3,1699.5,3.89804672]
[1659304071542,0.05,1700.2,1699.5,3.89804672]
[1659304071692,0.057,1700.3,1699.5,3.84804672]
[1659304071936,0.35482765,1700.2,1699.5,4.02257821]
[1659304072370,1.599,1701.9,1701.0,0.581]
[1659304072590,1.43998312,1702.4,1701.1,2.89804672]
[1659304072591,1.0,1702.0,1701.1,2.89804672]
[1659304072782,1.0,1702.0,1701.2,3.0]
[1659304072942,1.0,1702.0,1701.3,2.89804672]
[1659304073353,0.4411,1701.9,1701.4,2.89804672]
[1659304073555,1.0,1702.0,1701.4,2.89804672]
[1659304073756,1.0,1702.0,1701.6,0.2]
[1659304073980,6.113,1701.9,1701.2,3.0]
[1659304074195,0.4411,1701.9,1701.0,0.6106]
[1659304074340,0.4411,1701.9,1701.0,3.55864672]
[1659304074542,12.1111,1701.9,1701.0,0.6606]
[1659304074770,6.113,1701.8,1701.0,0.6606]
[1659304074954,0.4412,1701.7,1701.0,0.6106]
[1659304075176,0.7412,1701.7,1701.0,0.6106]
[1659304075548,8.6024,1701.7,1701.0,0.6106]
[1659304075800,14.7154,1701.7,1701.0,0.6106]
[1659304077141,6.113,1701.5,1700.9,0.05]
[1659304077351,0.7413,1701.4,1700.7,0.05]
[1659304077498,0.7413,1701.4,1700.3,4.47361718]
[1659304077700,6.163,1701.3,1700.4,2.89804672]
[1659304077900,6.163,1701.3,1699.8,0.619]
[1659304077901,6.113,1700.8,1699.8,0.619]
[1659304078227,6.113,1700.8,1699.9,0.2]
[1659304078228,0.4914,1700.7,1699.9,0.2]
[1659304078438,0.4914,1700.7,1699.8,0.05]
[1659304078439,0.7414,1700.7,1699.8,0.05]
[1659304078599,0.4914,1700.7,1700.0,0.34471435]
[1659304078799,9.739,1700.8,1700.0,0.34471435]
[1659304079048,9.689,1700.8,1700.0,0.34471435]
[1659304079624,9.689,1700.8,1700.0,0.52069871]
[1659304081064,9.2476,1700.8,1700.0,0.34471435]
[1659304081269,9.989,1700.8,1700.0,0.34471435]
[1659304081970,17.5757,1700.8,1700.1,2.89804672]
[1659304082137,17.5757,1700.8,1700.2,3.0]
[1659304083574,17.2757,1700.8,1700.2,3.34471435]
[1659304084233,17.2757,1700.8,1700.3,2.89804672]
[1659304084427,0.05,1701.0,1700.4,7.14471435]
[1659304084627,0.05,1701.2,1700.4,6.24276107]
[1659304084875,17.0444,1701.3,1700.4,3.34471435]
[1659304084876,17.5357,1701.3,1700.4,3.34471435]
[1659304085038,17.5357,1701.3,1700.4,0.39471435]
[1659304085929,16.7857,1701.3,1700.4,0.39471435]
[1659304086133,17.0857,1701.3,1700.4,0.39471435]
[1659304086742,17.0857,1701.3,1700.4,0.59471435]
[1659304088170,17.0857,1701.3,1700.4,0.39471435]
[1659304088964,17.0357,1701.3,1700.4,0.39471435]
[1659304092489,6.113,1701.1,1700.4,0.39471435]
[1659304092685,0.05,1701.2,1700.5,2.89804672]
[1659304092885,10.8727,1701.3,1700.6,0.34471435]
[1659304092886,10.4814,1701.3,1700.6,0.34471435]
[1659304093084,13.77074672,1701.3,1700.6,0.34471435]
[1659304093704,13.77074672,1701.3,1700.5,0.05]
[1659304093705,9.01104672,1701.1,1700.5,0.05]
[1659304093858,2.89804672,1701.1,1700.4,0.2]
[1659304094053,3.33934672,1701.1,1700.4,0.2]
[1659304094467,0.05,1701.2,1700.5,2.89804672]
[1659304094661,0.70350924,1701.3,1700.7,0.2]
[1659304094907,17.2866,1701.4,1700.7,0.2]
[1659304094908,17.3366,1701.4,1700.7,0.2]
[1659304095067,17.2866,1701.4,1700.7,3.09804672]
[1659304095267,17.2866,1701.4,1700.9,0.2]
[1659304095467,17.2866,1701.4,1700.9,3.09804672]
[1659304095907,16.95444672,1701.4,1700.9,0.2]
[1659304096307,14.0564,1701.4,1700.9,3.09804672]
[1659304096462,14.0564,1701.4,1700.9,3.44276107]
[1659304097862,3.002,1701.4,1701.0,2.89804672]
[1659304098063,3.2856,1701.9,1701.1,0.34471435]
[1659304098064,0.05,1701.7,1701.1,0.34471435]
[1659304098277,0.05,1701.9,1701.3,0.2]
[1659304098462,0.05,1702.0,1701.4,2.89804672]
[1659304098687,2.7487,1702.1,1701.4,4.36653672]
[1659304098894,2.7487,1702.1,1701.5,2.89804672]
[1659304099370,2.7487,1702.1,1701.6,0.2]
[1659304099573,2.7487,1702.1,1701.5,2.89804672]
[1659304100005,2.7487,1702.1,1701.6,0.54471435]
[1659304100172,2.7487,1702.1,1701.7,2.89804672]
[1659304100371,16.7588,1702.3,1701.7,2.89804672]
[1659304100578,13.9213,1702.3,1701.7,2.89804672]
[1659304100907,13.9213,1702.3,1701.9,0.2]
[1659304101465,14.2213,1702.3,1701.9,0.2]
[1659304103819,0.05,1702.5,1702.0,2.89804672]
[1659304103993,2.7487,1702.6,1702.1,0.54471435]
[1659304104199,2.7487,1702.6,1702.1,3.44276107]
[1659304104591,2.7487,1702.6,1702.2,2.89804672]
[1659304105090,16.993,1702.8,1702.2,2.89804672]
[1659304105435,14.2671,1702.8,1702.2,2.89804672]
[1659304105786,14.2671,1702.8,1702.3,0.2]
[1659304106229,14.5671,1702.8,1702.3,0.2]
[1659304106535,3.223,1702.8,1702.3,0.2]
[1659304107124,3.223,1702.8,1702.3,3.09804672]
[1659304107494,3.223,1702.8,1702.3,2.89804672]
[1659304108330,3.523,1702.8,1702.3,2.89804672]
[1659304108715,3.223,1702.8,1702.3,2.89804672]
[1659304109831,3.223,1702.8,1702.2,0.34471435]
[1659304110548,3.223,1702.8,1702.3,0.03588507]
[1659304111820,3.21940425,1702.8,1702.3,0.03588507]
[1659304112764,3.51940425,1702.8,1702.3,0.03588507]
[1659304113123,3.41940425,1702.8,1702.3,0.03588507]
[1659304119094,3.21940425,1702.8,1702.3,0.03588507]
[1659304119787,3.51940425,1702.8,1702.3,0.03588507]
[1659304119998,0.4409,1702.7,1702.3,0.03588507]
[1659304120289,0.7409,1702.7,1702.3,0.03588507]
[1659304122806,1.7409,1702.7,1702.3,0.03588507]
[1659304123105,1.3,1702.7,1702.3,0.03588507]
[1659304128022,3.21940425,1702.8,1702.3,0.03588507]
[1659304128216,3.21940425,1702.8,1702.7,0.2]
[1659304128475,13.823,1703.1,1702.6,0.2]
[1659304128675,13.823,1703.1,1702.7,1.46758]
[1659304128894,13.823,1703.1,1702.6,0.54471435]
[1659304129565,13.823,1703.1,1702.7,1.46758]
[1659304129746,13.823,1703.1,1702.7,4.46758]
[1659304130127,13.823,1703.1,1702.7,3.0]
[1659304130332,0.05,1703.4,1702.8,2.01223435]
[1659304130568,0.05,1703.5,1702.8,11.88626543]
[1659304130774,3.2521,1703.6,1703.1,1.66728]
[1659304130929,3.2021,1703.6,1703.1,1.66728]
[1659304131129,3.2021,1703.6,1703.1,4.91004107]
[1659304131366,3.2021,1703.6,1703.2,3.0]
[1659304131751,13.8378,1703.8,1703.2,3.0]
[1659304131969,13.5378,1703.8,1703.2,3.0]
[1659304132357,0.04179763,1703.6,1703.1,5.14480697]
[1659304132552,0.04179763,1703.6,1703.1,3.67752697]
[1659304132786,0.04179763,1703.6,1703.2,1.46718]
[1659304133352,13.8378,1703.8,1703.2,1.50276696]
[1659304136174,13.8378,1703.8,1703.2,1.73751776]
[1659304137987,13.8378,1703.8,1703.3,1.701872]
[1659304138219,13.8378,1703.8,1703.3,1.46713]
[1659304138817,10.9151,1703.8,1703.3,1.46713]
[1659304139314,10.9151,1703.8,1703.3,1.7018637]
[1659304141741,10.9151,1703.8,1703.2,0.38030131]
[1659304142402,13.51314672,1703.8,1703.2,0.38030131]
[1659304142603,9.01104672,1703.7,1703.2,3.03558696]
[1659304142903,10.6151,1703.8,1703.2,0.38030131]
[1659304143704,11.3557,1703.8,1703.2,0.38030131]
[1659304143903,10.9151,1703.8,1703.2,0.57719937]
[1659304145310,10.9151,1703.8,1703.2,0.37719937]
[1659304145906,10.9151,1703.8,1703.2,1.84431937]
[1659304146306,10.9151,1703.8,1703.2,0.37719937]
[1659304146639,10.9151,1703.8,1703.3,1.4671]
[1659304147459,10.9151,1703.8,1703.4,0.34471435]
[1659304147460,10.6151,1703.8,1703.4,0.34471435]
[1659304147614,10.6151,1703.8,1703.5,1.46699]
[1659304147811,6.8982,1703.9,1703.5,1.46699]
[1659304148061,3.447,1703.9,1703.5,4.6352459]
[1659304148212,3.447,1703.9,1703.6,1.46677]
[1659304148662,0.6,1704.0,1703.6,1.46677]
[1659304148865,0.3,1704.0,1703.6,1.46677]
[1659304149158,0.3,1704.0,1703.6,1.7014569]
[1659304151232,0.3,1704.0,1703.4,1.84719062]
[1659304151533,8.84070996,1704.1,1703.4,1.84719062]
[1659304151534,7.94070996,1704.1,1703.4,1.84719062]
[1659304151739,10.83875668,1704.1,1703.4,1.84719062]
[1659304152427,1.0,1704.0,1703.4,1.79719062]
[1659304152953,1.4406,1704.0,1703.4,1.79719062]
[1659304153264,1.3,1704.0,1703.4,1.79719062]
[1659304153476,1.3,1704.0,1703.5,0.03549426]
[1659304155993,1.31446373,1704.0,1703.5,0.03549426]
[1659304156370,13.96205668,1704.1,1703.6,0.33025062]
[1659304157159,10.76400996,1704.1,1703.6,0.33025062]
[1659304157489,6.113,1704.2,1703.6,0.33025062]
[1659304157655,9.01104672,1704.2,1703.6,0.33025062]
[1659304158255,6.1762,1704.3,1703.6,0.33025062]
[1659304158536,6.1762,1704.3,1703.7,0.2]
[1659304158689,6.4762,1704.3,1703.7,0.2]
[1659304159008,6.4762,1704.3,1703.7,1.46663]
[1659304159009,6.49066373,1704.3,1703.7,1.46663]
[1659304159202,6.49066373,1704.3,1703.6,0.2346921]
[1659304159369,6.49066373,1704.3,1703.6,1.73578253]
[1659304159691,6.49066373,1704.3,1703.6,2.06603315]
[1659304159905,6.49066373,1704.3,1703.7,1.46679]
[1659304159906,6.44066373,1704.3,1703.7,1.46679]
[1659304161967,5.59187684,1704.1,1703.6,0.36452105]
[1659304162585,5.89187684,1704.1,1703.6,0.36452105]
[1659304162898,0.7405,1704.2,1703.6,0.36452105]
[1659304163097,0.3,1704.2,1703.6,0.36452105]
[1659304163303,9.3417,1704.3,1703.6,0.36452105]
[1659304163304,9.6417,1704.3,1703.6,0.36452105]
[1659304164120,9.2012,1704.3,1703.6,3.26256777]
[1659304164328,0.01446373,1704.2,1703.6,0.36452105]
[1659304164785,9.16566373,1704.3,1703.6,0.36452105]
[1659304166085,9.16566373,1704.3,1703.6,4.72928777]
[1659304166908,8.9012,1704.3,1703.6,4.72928777]
[1659304167113,8.9012,1704.3,1703.7,3.0]
[1659304168116,8.9012,1704.3,1703.7,3.2]
[1659304168321,8.9012,1704.3,1703.8,0.34471435]
[1659304169218,8.9012,1704.3,1703.8,1.81139435]
[1659304171000,8.9012,1704.3,1703.8,2.04606485]
[1659304172309,8.9012,1704.3,1703.8,0.34471435]
[1659304173347,25.5597,1704.4,1703.9,3.13270932]
[1659304173348,19.4467,1704.4,1703.9,3.13270932]
[1659304173609,19.4467,1704.4,1703.9,0.2346626]
[1659304173610,19.7467,1704.4,1703.9,0.2346626]
[1659304174317,19.7467,1704.4,1703.9,1.7012826]
[1659304174831,20.1872,1704.4,1703.8,0.37897226]
[1659304175218,19.7467,1704.4,1703.9,2.89804672]
[1659304175421,19.7467,1704.4,1704.0,0.34471435]
[1659304175613,19.4467,1704.4,1704.0,0.34471435]
[1659304175832,19.4467,1704.4,1704.0,0.77935835]
[1659304176651,19.4467,1704.4,1704.0,2.24585835]
[1659304176834,19.4467,1704.4,1704.0,0.34471435]
[1659304177366,19.7467,1704.4,1704.0,0.34471435]
[1659304181543,8.0267,1704.4,1704.0,0.34471435]
[1659304181744,8.4672,1704.4,1703.9,1.7012944]
[1659304182056,8.4672,1704.4,1703.9,0.2346644]
[1659304183560,8.4672,1704.4,1703.9,0.57937875]
[1659304183762,8.4172,1704.4,1703.9,2.04601875]
[1659304183964,7.9767,1704.4,1703.9,2.04601875]
[1659304193598,7.8267,1704.4,1703.9,2.04601875]
[1659304193809,7.7267,1704.4,1703.9,2.04601875]
[1659304195164,8.0267,1704.4,1703.9,2.04601875]
[1659304197996,8.0267,1704.4,1703.9,1.81135435]
[1659304198170,8.0267,1704.4,1703.9,2.04601435]
[1659304199513,0.04101406,1704.3,1704.0,1.46647]
[1659304200333,0.04101406,1704.3,1704.0,4.46647]
[1659304200496,0.04101406,1704.3,1704.1,3.24276107]
[1659304200697,0.04101406,1704.3,1704.2,1.46626]
[1659304204029,0.04101406,1704.3,1704.2,9.58195862]
[1659304204233,0.04101406,1704.3,1704.2,9.38195862]
[1659304204432,0.05,1704.7,1704.3,5.24221435]
[1659304204646,5.7072,1705.4,1704.6,0.61]
[1659304204647,0.05,1704.9,1704.6,0.61]
[1659304204863,11.1517,1705.3,1704.6,3.50804672]